[Event "Presidents Day NY GM A 2025"]
[Site "New York"]
[Date "2025.02.14"]
[Round "1.1"]
[White "Paragua, Mark"]
[Black "Gauri, Shankar"]
[Result "1/2-1/2"]
[Annotator "TA"]
[ECO "C65"]
[WhiteElo "2446"]
[BlackElo "2360"]
[PlyCount "176"]
[EventDate "2025.02.12"]
[EventType "tourn"]
[EventCountry "USA"]
[SourceTitle "playchess.com"]
[Source "ChessBase"]
[SourceQuality "1"]
[TimeControl "5400+30"]

{[%evp 9,176,18,22,16,26,25,22,29,25,22,27,0,0,9,12,-7,10,-19,-17,-17,-13,-16,-2,-36,-18,-21,-12,-8,-17,-26,-38,-20,-22,-20,-13,-78,38,66,50,19,26,0,71,79,54,71,65,70,67,58,60,57,62,58,62,58,57,-2,-8,-15,-9,-14,54,56,62,40,46,10,71,71,71,71,70,70,72,67,74,79,89,22,23,22,22,23,23,22,22,22,22,27,33,5,5,5,5,6,8,8,8,0,0,0,0,0,0,0,0,0,0,0,0,0,10,0,0,0,0,0,0,0,0,0,0,0,0,0,0,-8,0,0,0,0,0,0,0,0,0,-8,-8,-8,-8,-8,-8,-8,-8,-8,0,-8,-8,-8,-8,-8,-8,-8,-8,-8,-8,-8,-8,-8,-8,-8,0,-8,-8,-8,-8,-8,-8]} 1. e4 {[%emt 0:00:07]} e5 {[%emt 0:07:01]} 2. Nf3 {[%emt 0:00:21]} Nc6 {[%emt 0:00:27]} 3. Bb5 {[%emt 0:00:31]} Nf6 {[%emt 0:00:10][%cal Bg8f6,Bf6d7,Bd7b6][%mdl 32]} 4. d3 {[%emt 0:00:15]} Bc5 {[%emt 0:00:44]} 5. Bxc6 {[%emt 0:00:25]} dxc6 {[%emt 0:00:08]} 6. O-O {[%emt 0:00:17] C65: Ruy Lopez: Berlin Defence (3...Nf6), unusual lines and 4 0-0 Bc5.} (6. Nxe5 $2 Qd4 7. Qe2 Qxe5 $19) 6... Qe7 {[%emt 0:10:59]} 7. Nbd2 {[%emt 0:01:46]} O-O {[%emt 0:07:02]} 8. Nc4 {[%emt 0:00:25]} Nd7 {[%emt 0:06:55]} 9. c3 {[%emt 0:00:51]} Bd6 {[%emt 0:07:41]} 10. Bg5 $146 {[%emt 0:02:59]} (10. Re1 Re8 11. d4 f6 12. dxe5 Nxe5 13. Nfxe5 Bxe5 14. Be3 b6 15. f3 Qf7 16. Nxe5 Rxe5 {1-0 Duda,J (2750)-Hansen,E (2606) Oslo Esports Cup rapid 2022 (7.2)}) 10... f6 {[%emt 0:02:16]} 11. Bh4 {[%emt 0:00:50]} Nb6 {[%emt 0:04:28]} 12. Ne3 {[%emt 0:00:34]} c5 {[%emt 0:03:42]} 13. Nd2 {[%emt 0:04:45]} Be6 {[%emt 0:04:16]} 14. Bg3 {[%emt 0:04:56]} Rad8 {[%emt 0:08:16]} 15. Qc2 {[%emt 0:00:17]} c6 {[%emt 0:09:11]} 16. a4 {[%emt 0:02:22]} a5 {[%emt 0:00:43]} 17. Rfd1 {[%emt 0:03:43]} Bc7 {[%emt 0:01:42]} 18. Nb3 {[%emt 0:05:32]} Nd7 {[%emt 0:14:09]} 19. f3 {[%emt 0:09:18]} Qf7 {[%emt 0:02:02]} 20. Nd2 {[%emt 0:00:42]} Nb6 {[%emt 0:01:04]} 21. Bf2 {[%emt 0:25:33]} Rd7 {[%emt 0:00:30]} 22. c4 {[%emt 0:09:18]} (22. Rab1 $11) 22... Rfd8 {[%emt 0:01:45]} (22... Nc8 $17) 23. Nb3 $1 $14 {[%emt 0:00:33][%csl LRa5,LRc5]} Bd6 {[%emt 0:01:54]} 24. Nf5 {[%emt 0:02:23]} Bxf5 {[%emt 0:00:34]} 25. exf5 {[%emt 0:00:04]} Qf8 {[%emt 0:01:15]} (25... Nc8 $1 $11) 26. Nxa5 $16 {[%emt 0:08:17]} Ra8 {[%emt 0:00:06]} 27. Nb3 {[%emt 0:00:03][%cal Ba5b3,Bb3d2,Bd2e4][%mdl 32]} Rxa4 {[%emt 0:01:53]} 28. Rxa4 {[%emt 0:00:30]} Nxa4 {[%emt 0:00:01]} 29. Nd2 {[%emt 0:00:06]} Nb6 {[%emt 0:01:33]} 30. Ne4 {[%emt 0:00:06]} Nc8 $1 {[%emt 0:00:52]} 31. Ra1 {[%emt 0:00:16] White is much more active. Black is weak on the light squares} Be7 {[%emt 0:01:17]} 32. Ra8 {[%emt 0:00:50]} g6 {[%emt 0:00:46]} 33. Rb8 {[%emt 0:07:06]} (33. Ng3 $14) 33... gxf5 $11 {[%emt 0:00:27]} 34. Ng3 {[%emt 0:00:02]} Bd6 {[%emt 0:00:32]} 35. Ra8 {[%emt 0:00:16]} Rd8 {[%emt 0:00:18]} (35... f4 $11 36. Nf5 Rd8) 36. Nxf5 $14 {[%emt 0:00:51]} Ne7 {[%emt 0:00:18]} 37. Rxd8 {[%emt 0:00:32]} (37. Nh6+ $5 Kg7 38. Rxd8 Qxd8 39. Qd2 $14) 37... Qxd8 {[%emt 0:00:01]} 38. Ng3 {[%emt 0:00:06]} Qa5 {[%emt 0:01:28]} (38... Ng6 $11 {remains equal.}) 39. h4 $16 {[%emt 0:03:29]} Ng6 {[%emt 0:00:31][%cal Oa5d8] [#]} 40. Nf5 $1 {[%emt 0:00:04]} Bf8 {[%emt 0:00:03]} 41. g3 {[%emt 0:00:31]} b6 {[%emt 0:01:21]} 42. Qe2 {[%emt 0:00:20]} Qa7 {[%emt 0:00:35]} 43. Qe4 {[%emt 0:01:42]} Qd7 {[%emt 0:00:04]} 44. Ne3 {[%emt 0:01:34]} ({White should try} 44. Kg2 $16) 44... Bg7 {[%emt 0:00:37]} 45. Qf5 {[%emt 0:01:55]} Qxf5 {[%emt 0:00:49]} 46. Nxf5 $11 {[%emt 0:00:02][%mdl 4096] Endgame KBN-KBN} Bf8 {[%emt 0:00:17]} 47. h5 {[%emt 0:00:01]} Nh8 {[%emt 0:00:28]} 48. g4 {[%emt 0:00:18]} Kf7 $1 {[%emt 0:00:24]} 49. Bg3 {[%emt 0:03:06]} Ke6 {[%emt 0:00:05]} 50. f4 {[%emt 0:00:03]} exf4 {[%emt 0:01:13] The position is equal.} 51. Bxf4 {[%emt 0:00:01]} Nf7 {[%emt 0:00:14]} 52. Kf2 {[%emt 0:00:24]} Bd6 {[%emt 0:00:51]} 53. Nxd6 {[%emt 0:02:41]} Nxd6 {[%emt 0:00:02] KB-KN} 54. Kf3 {[%emt 0:00:24]} Nf7 {[%emt 0:00:17]} 55. Bc7 {[%emt 0:00:44]} Ne5+ {[%emt 0:00:32]} 56. Ke4 {[%emt 0:00:01] [#]} Nxg4 {[%emt 0:00:19]} 57. Bxb6 {[%emt 0:00:35]} f5+ {[%emt 0:00:14]} 58. Kf3 {[%emt 0:00:47]} Ne5+ {[%emt 0:00:25]} 59. Ke2 {[%emt 0:00:01]} Nd7 {[%emt 0:01:16]} 60. Ba5 {[%emt 0:00:38]} f4 {[%emt 0:00:38]} 61. Bc7 {[%emt 0:01:38]} Ne5 {[%emt 0:00:46]} 62. b3 {[%emt 0:02:06]} f3+ {[%emt 0:00:30]} 63. Ke3 {[%emt 0:00:09]} f2 $1 {[%emt 0:00:05]} 64. Kxf2 {[%emt 0:00:03] Bxe5 is the strong threat.} Nxd3+ {[%emt 0:00:02]} 65. Ke3 {[%emt 0:01:19]} Nc1 {[%emt 0:00:04]} 66. Bb6 $1 {[%emt 0:00:32]} Nxb3 {[%emt 0:00:02]} 67. Ke4 {[%emt 0:00:04]} Kf6 {[%emt 0:01:26] ...Kg5 would now be deadly.} 68. Bd8+ {[%emt 0:00:22]} Ke6 {[%emt 0:00:02]} 69. Bb6 {[%emt 0:00:05]} Nd2+ {[%emt 0:01:16]} 70. Kd3 {[%emt 0:00:07]} Nb3 {[%emt 0:00:46]} 71. Kc3 {[%emt 0:00:04]} Nd4 {[%emt 0:00:16]} 72. Bxc5 {[%emt 0:00:02]} Ne2+ {[%emt 0:00:26]} 73. Kd3 {[%emt 0:02:47]} Nf4+ {[%emt 0:00:05]} 74. Ke4 {[%emt 0:00:02]} Nxh5 {[%emt 0:00:06]} 75. Bf2 {[%emt 0:00:06]} Nf6+ {[%emt 0:00:49]} 76. Kf4 {[%emt 0:00:07]} Nd7 {[%emt 0:00:45]} 77. Bd4 {[%emt 0:00:30]} Nf6 {[%emt 0:00:44]} 78. Kg5 {[%emt 0:00:17]} Ne4+ {[%emt 0:01:07]} 79. Kh6 {[%emt 0:00:14]} Nd6 {[%emt 0:00:16] ( -> ...Nf5+)} 80. Kxh7 {[%emt 0:00:11]} Nxc4 {[%emt 0:00:29]} 81. Kg6 {[%emt 0:00:04]} Kd5 {[%emt 0:00:17]} (81... Ne5+ $5 82. Kg7 Kd5 $11) 82. Ba7 {[%emt 0:00:13]} Nd6 {[%emt 0:00:27]} 83. Kg5 {[%emt 0:00:09]} Nc8 {[%emt 0:00:22]} 84. Bf2 $1 {[%emt 0:00:13]} Ke4 {[%emt 0:00:02]} 85. Kf6 {[%emt 0:00:10]} Kd5 {[%emt 0:00:11]} 86. Kf5 {[%emt 0:00:10]} Nd6+ {[%emt 0:00:22]} 87. Kf4 {[%emt 0:00:06]} c5 {[%emt 0:00:14]} 88. Bxc5 {[%emt 0:00:05]} Kxc5 {[%emt 0:00:01] Weighted Error Value: White=0.12 (very precise) /Black=0.11 (very precise)   Mistake:       	White=3     	Black=4      Inaccurate:     	White=6     	---        OK:         	White=34    	Black=39     Best:        	White=5     	Black=4      Strong:       	White=3     	Black=3} 1/2-1/2

[Event "Presidents Day NY GM A 2025"]
[Site "New York"]
[Date "2025.02.14"]
[Round "1.2"]
[White "Putnam, Liam"]
[Black "Stearman, Josiah"]
[Result "1/2-1/2"]
[Annotator "RC"]
[ECO "B62"]
[WhiteElo "2402"]
[BlackElo "2439"]
[PlyCount "133"]
[EventDate "2025.02.12"]
[EventType "tourn"]
[EventCountry "USA"]
[SourceTitle "playchess.com"]
[Source "ChessBase"]
[SourceQuality "1"]
[TimeControl "5400+30"]

1. e4 {[%emt 0:00:05]} c5 {[%emt 0:11:08]} 2. Nf3 {[%emt 0:00:08]} d6 {[%emt 0:00:10]} 3. d4 {[%emt 0:00:14]} cxd4 {[%emt 0:00:17]} 4. Nxd4 {[%emt 0:00:02]} Nf6 {[%emt 0:00:11]} 5. Nc3 {[%emt 0:00:05]} Nc6 {[%emt 0:00:06]} 6. Bg5 {[%emt 0:02:02]} e6 {[%emt 0:00:38]} 7. Qd3 {[%emt 0:05:57]} Bd7 {[%emt 0:00:19]} 8. O-O-O {[%emt 0:00:14]} a6 {[%emt 0:00:23]} 9. f4 {[%emt 0:00:22]} Be7 {[%emt 0:00:27]} 10. Nf3 {[%emt 0:00:37]} Qa5 {[%emt 0:01:12]} 11. Bxf6 {[%emt 0:01:16]} gxf6 {[%emt 0:00:16]} 12. Qe3 {[%emt 0:01:28]} Rc8 {[%emt 0:06:52]} 13. Kb1 {[%emt 0:00:58]} Qc5 {[%emt 0:00:21]} 14. Qxc5 {[%emt 0:04:05]} dxc5 {[%emt 0:00:07]} 15. Na4 {[%emt 0:01:01]} Rd8 {[%emt 0:10:37]} 16. Nb6 {[%emt 0:01:23]} Rg8 {[%emt 0:05:12]} 17. g3 {[%emt 0:00:46]} Nd4 {[%emt 0:11:20]} 18. Nxd4 {[%emt 0:04:56]} cxd4 {[%emt 0:01:31]} 19. Rxd4 {[%emt 0:00:24]} Bc6 {[%emt 0:00:10]} 20. Rxd8+ {[%emt 0:00:07]} Bxd8 {[%emt 0:00:09]} 21. Nc4 {[%emt 0:00:06]} h5 {[%emt 0:08:19]} 22. Bd3 {[%emt 0:22:47]} Bc7 {[%emt 0:04:44]} 23. Rf1 {[%emt 0:02:28]} h4 {[%emt 0:01:32]} 24. gxh4 {[%emt 0:00:55]} Rg4 {[%emt 0:07:33]} 25. f5 {[%emt 0:07:01]} Ke7 {[%emt 0:00:41]} 26. Nd2 {[%emt 0:01:51]} Rxh4 {[%emt 0:02:17]} 27. Nf3 {[%emt 0:03:25]} Rf4 {[%emt 0:00:40]} 28. Nd2 {[%emt 0:00:21]} Rg4 {[%emt 0:02:23]} 29. h3 {[%emt 0:02:08]} Rh4 {[%emt 0:00:02]} 30. Rf3 {[%emt 0:04:20]} Bf4 {[%emt 0:00:17]} 31. Nb3 {[%emt 0:00:25]} Bg5 {[%emt 0:00:12]} 32. a3 {[%emt 0:11:04]} b6 {[%emt 0:04:47]} 33. fxe6 {[%emt 0:01:26]} fxe6 {[%emt 0:00:02]} 34. Rg3 {[%emt 0:00:33]} Bxe4 {[%emt 0:01:17]} 35. Bxa6 {[%emt 0:00:13]} Bf5 {[%emt 0:00:14]} 36. Bf1 {[%emt 0:01:03]} e5 {[%emt 0:02:29]} 37. Nc1 {[%emt 0:01:35]} Rd4 {[%emt 0:02:30]} 38. Bd3 {[%emt 0:03:48]} e4 {[%emt 0:00:10]} 39. Be2 {[%emt 0:00:06]} Rd6 {[%emt 0:05:34]} 40. b4 {[%emt 0:00:50]} Ke6 {[%emt 0:01:03]} 41. a4 {[%emt 0:00:55]} Bd2 {[%emt 0:00:57]} 42. Rb3 {[%emt 0:01:40]} Ke5 {[%emt 0:01:15]} 43. a5 {[%emt 0:03:17]} bxa5 {[%emt 0:00:44]} 44. bxa5 {[%emt 0:00:07]} Bxa5 {[%emt 0:00:44]} 45. Rb5+ {[%emt 0:00:38]} Rd5 {[%emt 0:00:03]} 46. Rxd5+ {[%emt 0:01:07]} Kxd5 {[%emt 0:00:21]} 47. c4+ {[%emt 0:01:22]} Ke5 {[%emt 0:00:29]} 48. Bf1 {[%emt 0:02:22]} Be6 {[%emt 0:00:50]} 49. Kc2 {[%emt 0:00:51]} f5 {[%emt 0:00:07]} 50. h4 {[%emt 0:06:50]} f4 {[%emt 0:00:09]} 51. c5 {[%emt 0:00:52]} f3 {[%emt 0:00:25]} 52. h5 {[%emt 0:01:14]} Kf6 {[%emt 0:00:45]} 53. c6 {[%emt 0:01:01]} Kg5 {[%emt 0:00:10]} 54. Nb3 {[%emt 0:00:28]} Bxb3+ {[%emt 0:00:26]} 55. Kxb3 {[%emt 0:00:02]} e3 {[%emt 0:00:08]} 56. Kc2 {[%emt 0:00:54]} e2 {[%emt 0:02:54]} 57. Bxe2 {[%emt 0:00:03]} fxe2 {[%emt 0:00:05]} 58. c7 {[%emt 0:00:03]} e1=Q {[%emt 0:00:07]} 59. c8=Q {[%emt 0:00:05]} Qe4+ {[%emt 0:00:14]} 60. Kc1 {[%emt 0:00:25]} Qe3+ {[%emt 0:00:20]} 61. Kc2 {[%emt 0:00:36]} Qe2+ {[%emt 0:00:29]} 62. Kb1 {[%emt 0:00:11]} Qb5+ {[%emt 0:00:22]} 63. Kc1 {[%emt 0:00:19]} Qf1+ {[%emt 0:00:54]} 64. Kb2 {[%emt 0:00:11]} Qf6+ {[%emt 0:00:28]} 65. Kb1 {[%emt 0:00:12]} Qb6+ {[%emt 0:01:09]} 66. Ka2 {[%emt 0:00:11]} Qf2+ {[%emt 0:00:03]} 67. Kb1 {[%emt 0:00:08]} 1/2-1/2

[Event "Presidents Day NY GM A 2025"]
[Site "New York"]
[Date "2025.02.14"]
[Round "1.3"]
[White "Jacobson, Aaron"]
[Black "Nagy, Gabor"]
[Result "1/2-1/2"]
[Annotator "TA"]
[ECO "B48"]
[WhiteElo "2343"]
[BlackElo "2472"]
[PlyCount "120"]
[EventDate "2025.02.12"]
[EventType "tourn"]
[EventCountry "USA"]
[SourceTitle "playchess.com"]
[Source "ChessBase"]
[SourceQuality "1"]
[TimeControl "5400+30"]

{[%evp 14,120,33,23,37,-39,-30,-31,-25,-45,-25,-56,-17,-533,118,102,481,-566,-294,-1512,0,0,32,31,32,-417,62,56,85,75,119,120,106,120,122,118,123,106,106,88,95,93,81,83,91,76,78,82,167,77,135,55,70,81,84,69,68,69,77,51,35,44,39,44,40,29,29,29,33,36,47,35,68,39,43,48,43,35,52,8,24,24,48,28,91,102,87,20,28,8,8,8,8,8,8,8,8,0,0,0,0,0,0,0,0,0,0,0,0]} 1. e4 {[%emt 0:00:03]} c5 {[%emt 0:00:30]} 2. Nf3 {[%emt 0:00:06]} e6 {[%emt 0:00:16]} 3. d4 {[%emt 0:00:27]} cxd4 {[%emt 0:00:16]} 4. Nxd4 {[%emt 0:00:04]} Nc6 {[%emt 0:00:25]} 5. Nc3 {[%emt 0:00:14]} Qc7 {[%emt 0:00:14]} 6. Be3 {[%emt 0:00:20]} a6 {[%emt 0:00:20]} 7. Qd2 {[%emt 0:00:32]} Nf6 {[%emt 0:01:46]} 8. O-O-O {[%emt 0:00:12]} Be7 {[%emt 0:02:07] [#] is now debated instead of 8...Bb4. B48: Sicilian: Taimanov: 5 Nc3 Qc7 6 Be3 a6 without Be2.} 9. g4 {[%emt 0:01:39]} Nxg4 $15 {[%emt 0:09:30]} 10. Bf4 {[%emt 0:00:51] White sacrificed a pawn} Nge5 $1 {[%emt 0:01:56] Black is slightly better.} 11. Nxc6 {[%emt 0:00:17]} bxc6 {[%emt 0:01:06]} 12. Rg1 {[%emt 0:00:37]} g5 {[%emt 0:07:27]} 13. Rg3 $146 {[%emt 1:31:38][%mdl 8192]} (13. Rxg5 Bxg5 14. Bxg5 Nf3 15. Qe3 Nxg5 16. Qxg5 d6 17. Qg3 e5 18. f4 Qe7 19. Qg7 {½-½ Yu,Y (2720)-Erigaisi,A (2738) Shenzhen Longgang 5th 2024 (5)}) 13... g4 $2 (13... gxf4 $19 14. Rh3 d5) 14. Rxg4 $16 {[%emt 0:00:00] White is more active.} Nf3 $2 {[%emt 0:01:27][%mdl 8192]} 15. Rg5 $4 {[%emt 0:00:00][%mdl 8192]} (15. Bxc7 $18 {is the narrow road to win.} Nxd2 16. Rxd2) 15... Nxd2 {[%emt 0:03:02]} 16. Rh5 $2 {[%emt 0:00:00]} (16. Bxc7 Bxg5 17. Rxd2) 16... Nxf1 $2 (16... Qxf4 $19 17. Rxd2 Bg5 18. Rxg5 Qxg5) 17. Bxc7 $11 {[%emt 0:00:00][%cal Bf4c7,Bc7e5,Be5d6][%mdl 32]} f6 {[%cal Oa8a7]} 18. Rxf1 {[%emt 0:00:00]} Ra7 {[%emt 0:06:54] [#]} 19. e5 $2 {[%emt 0:00:00][%mdl 8192]} fxe5 $2 {[%emt 0:06:46]} (19... Rxc7 $19 20. f4 f5) 20. Bxe5 $14 {[%emt 0:00:00]} Rf8 {[%emt 0:02:15]} 21. Rxh7 {[%emt 0:00:00]} d6 {[%emt 0:01:59]} 22. Bxd6 $1 {[%emt 0:00:00]} (22. Bg7 $6 Bg5+ 23. Kb1 Rg8 $11) 22... Bg5+ {[%emt 0:00:20]} 23. f4 {[%emt 0:00:00]} Rxh7 {[%emt 0:01:27]} 24. Bxf8 {[%emt 0:00:00]} Bf6 {[%emt 0:00:34]} 25. Ne4 {[%emt 0:00:00]} Bxb2+ {[%emt 0:01:31]} 26. Kxb2 {[%emt 0:00:00]} Kxf8 $16 {[%emt 0:00:06][%mdl 4096] Endgame KRB-KRN. White is a pawn up.} 27. Rf2 {[%emt 0:00:00]} Ke7 {[%emt 0:00:13]} 28. Kc3 {[%emt 0:00:00]} Rh5 {[%emt 0:00:41]} 29. Kd4 {[%emt 0:00:00]} Rd5+ {[%emt 0:01:07]} 30. Ke3 {[%emt 0:00:00]} Ra5 {[%emt 0:00:34] [#]} (30... Rh5 $16) 31. c3 {[%emt 0:00:00]} (31. h4 $1 $18 {has better winning chances.}) 31... Bd7 {[%emt 0:01:21]} ({Better is} 31... Rh5) 32. Ng5 {[%emt 0:00:00]} ({White should play} 32. Rg2 $16) 32... Ra3 {[%emt 0:01:58]} 33. Kd3 {[%emt 0:00:00]} c5 {[%emt 0:01:06]} 34. Ne4 {[%emt 0:00:00]} Bb5+ {[%emt 0:00:24]} 35. Ke3 {[%emt 0:00:00][%cal Oh2h4]} Bc4 {[%emt 0:03:02]} 36. f5 {[%emt 0:00:00]} (36. Nxc5 a5 $11) 36... exf5 {[%emt 0:00:44]} 37. Rxf5 {[%emt 0:00:00]} Rxa2 {[%emt 0:01:00]} 38. Rxc5 {[%emt 0:00:00]} (38. Nxc5 Rxh2 39. Rg5 Rh4 $11) 38... Bf7 {[%emt 0:01:04]} 39. h4 {[%emt 0:00:24]} Rh2 {[%emt 0:00:20]} 40. Ng3 {[%emt 0:03:17]} Kd6 {[%emt 0:01:55]} 41. Ra5 {[%emt 0:00:15]} Bc4 {[%emt 0:00:17][%cal Od6e6]} 42. Ne4+ {[%emt 0:03:10]} Ke6 {[%emt 0:01:47]} 43. Rh5 {[%emt 0:00:25]} (43. Kd4 $5 Bb5 44. c4 Bxc4 45. Kxc4 Rxh4 46. Kd4 $16 (46. Rxa6+ Kf5 $11)) 43... a5 {[%emt 0:03:28]} 44. Kd4 {[%emt 0:01:48]} Be2 {[%emt 0:00:12]} 45. Rh6+ {[%emt 0:00:55]} Kf7 {[%emt 0:00:38]} 46. Ng3 {[%emt 0:04:18]} Bg4 {[%emt 0:02:25]} 47. Ke5 {[%emt 0:01:33]} a4 {[%emt 0:01:00]} 48. Ra6 {[%emt 0:00:45]} Rh3 {[%emt 0:00:44] [#]} (48... Bd1 $1 $11 {keeps the balance.}) 49. Ne4 $1 {[%emt 0:00:34] Ng5+ is the strong threat.} Rxh4 {[%emt 0:00:48]} 50. Ra7+ {[%emt 0:00:22]} ({Much worse is} 50. Rxa4 Rh5+ 51. Kd6 Bf3 $14) (50. Ng5+ $16 Kg7 51. Rxa4) 50... Kf8 $11 {[%emt 0:00:55]} 51. Kf6 {[%emt 0:00:34]} Rh6+ {[%emt 0:06:47] The position is equal.} 52. Kg5 {[%emt 0:00:11]} Re6 {[%emt 0:00:05]} 53. Rxa4 {[%emt 0:00:42]} Bd1 {[%emt 0:00:28]} 54. Rd4 {[%emt 0:00:41]} Bc2 {[%emt 0:00:25]} 55. Kf5 {[%emt 0:00:29]} Ke7 {[%emt 0:00:50]} 56. Rb4 {[%emt 0:00:28]} Rxe4 {[%emt 0:01:46]} 57. Rxe4+ {[%emt 0:00:04]} Kd6 {[%emt 0:00:04]} 58. Kf4 {[%emt 0:00:09]} Bxe4 {[%emt 0:00:06]} 59. Kxe4 {[%emt 0:00:03] White wants to mate with Kd4.} Kc5 {[%emt 0:00:06]} 60. c4 {[%emt 0:00:02]} Kxc4 {[%emt 0:00:05] Weighted Error Value: White=0.62/Black=0.66  Loses game:     	White=2     	Black=1      Missed win:     	White=1     	Black=3      Mistake:       	White=5     	Black=3      Inaccurate:     	White=4     	Black=5      OK:         	White=15    	Black=23     Best:        	White=5     	Black=5      Strong:       	White=2     	Black=1} 1/2-1/2

[Event "Presidents Day NY GM A 2025"]
[Site "New York"]
[Date "2025.02.14"]
[Round "1.4"]
[White "Lenderman, Aleksandr"]
[Black "Kaliksteyn, Alexander"]
[Result "1/2-1/2"]
[Annotator "TA"]
[ECO "D31"]
[WhiteElo "2480"]
[BlackElo "2337"]
[PlyCount "67"]
[EventDate "2025.02.12"]
[EventType "tourn"]
[EventCountry "USA"]
[SourceTitle "playchess.com"]
[Source "ChessBase"]
[SourceQuality "1"]
[TimeControl "5400+30"]

{[%evp 29,67,0,16,25,42,11,26,34,24,0,18,-54,0,-38,-28,-110,-133,-112,-123,-136,-117,-356,-320,-570,-559,-527,-524,-410,-243,-253,-20,-20,0,0,0,0,0,0,0,0]} 1. d4 {[%emt 0:00:30]} d5 {[%emt 0:00:30]} 2. c4 {[%emt 0:00:30]} e6 {[%emt 0:00:30]} 3. Nc3 {[%emt 0:00:30]} c6 {[%emt 0:00:30]} 4. Nf3 {[%emt 0:00:30]} dxc4 {[%emt 0:00:30]} 5. e3 {[%emt 0:00:30]} b5 {[%emt 0:00:30]} 6. a4 {[%emt 0:00:30]} Bb4 {[%emt 0:00:30]} 7. Bd2 {[%emt 0:00:30]} Bb7 {[%emt 0:00:30]} 8. axb5 {[%emt 0:00:30]} Bxc3 {[%emt 0:00:30]} 9. Bxc3 {[%emt 0:00:30]} cxb5 {[%emt 0:00:30]} 10. b3 {[%emt 0:00:30]} a5 {[%emt 0:00:30]} 11. bxc4 {[%emt 0:00:30]} b4 {[%emt 0:00:30]} 12. Bb2 {[%emt 0:00:30]} Nf6 {[%emt 0:00:30][%cal Bg8f6,Bf6e8,Be8d6][%mdl 32]} 13. Bd3 {[%emt 0:00:30]} O-O {[%emt 0:00:30]} 14. O-O {[%emt 0:00:30]} Nbd7 {[%emt 0:00:30]} 15. Nd2 {[%emt 0:00:30]} Qc7 {[%emt 0:00:30][%cal Oa5a4]} 16. f4 {[%emt 0:00:30] A sharp opening D31: Queen's Gambit Declined: Semi-Slav without ...Nf6 (+ Marshall Gambit and Noteboom) and Exchange Variation lines without ...Nf6.} Ne8 {[%emt 0:00:30][%cal Oa5a4]} 17. e4 {[%emt 0:00:30]} f5 {[%emt 0:00:30]} 18. exf5 {[%emt 0:00:30] White has an edge.} exf5 {[%emt 0:00:30]} 19. Qc2 {[%emt 0:00:30]} Nd6 {[%emt 0:00:30]} 20. Rae1 $146 {[%emt 0:00:30]} (20. Nf3 $11) (20. c5 Ne4 21. Nxe4 fxe4 22. Bxe4 Bxe4 23. Qxe4 a4 24. Qe6+ Kh8 25. Rae1 Nf6 26. Qc4 {0-1 Voracek,M-Zentai,G (2065) Hollabrunn op U18 1998 (9)}) 20... a4 {[%emt 0:00:30]} ({Black should play} 20... Ne4 $1 $15) 21. Re7 {[%emt 0:00:30]} b3 {[%emt 0:00:30]} 22. Qc3 {[%emt 0:00:30]} (22. Qc1 $11) 22... a3 $17 {[%emt 0:00:30]} 23. c5 {[%emt 0:00:30]} axb2 {[%emt 0:00:30] Black plays on the queen side and is better} 24. Qxb3+ {[%emt 0:00:30]} Kh8 {[%emt 0:00:30][%cal Oa8b8]} 25. Qe6 $2 {[%emt 0:00:30]} (25. Qxb2 $17 Nc8 26. Ree1) 25... Nxc5 $19 {[%emt 0:00:30]} 26. Qe5 {[%emt 0:00:30] [#]} (26. dxc5 {was forced.} Qxc5+ 27. Qe3) 26... Qxe7 $3 {[%emt 0:00:30][%mdl 512]} 27. Qxe7 {[%emt 0:00:30]} Nxd3 {[%emt 0:00:30]} 28. Qxd6 {[%emt 0:00:30]} Rfe8 {[%emt 0:00:30]} (28... Rfc8 $142 29. Qb6 Bd5) 29. d5 {[%emt 0:00:30] [#]} Rad8 $2 {[%emt 0:00:30]} (29... Rec8 $1 $19 {[%cal Rc8c2] and ...Rc2 should not be overlooked} 30. Qb6 Bxd5) 30. Qa3 $11 {[%emt 0:00:30] [#] The position is equal. Really sharp!} Bxd5 $1 {[%emt 0:00:30]} 31. Qxd3 {[%emt 0:00:30][%cal Od3b5] Qb5! is the strong threat.} Bxg2 $1 {[%emt 0:00:30]} 32. Qb5 {[%emt 0:00:30]} Bxf1 {[%emt 0:00:30]} 33. Kxf1 {[%emt 0:00:30]} Rb8 {[%emt 0:00:30]} ({And not} 33... Rxd2 34. Qxe8#) 34. Qxf5 {[%emt 0:00:30] Weighted Error Value: White=0.38/Black=0.40  Loses game:     	White=1     	---        Missed win:     	---       	Black=1      Mistake:       	White=3     	Black=2      Inaccurate:     	White=1     	---        OK:         	White=6     	Black=5      Best:        	White=3     	Black=4      Strong:       	---       	Black=1      Brilliant:      	---       	Black=1} 1/2-1/2